Cogmind - Beta 13 @@@ ROGUE MODE // 2024.04.14 @ 18:07:37 Player: Millea Result: Destroyed by EO-I12(R) with Subdweller Laser Performance ------------- Evolutions (0) 0 Regions Visited (2) 400 Robots Destroyed (19) 95 Value Destroyed (471) 471 Prototype IDs (5) 100 Alien Tech Used (0) 0 Bonus (0) 0 TOTAL SCORE: 1066 Bonus ------- None Cogmind --------- Core Integrity 0/250 Matter 262/300 Energy 200/200 System Corruption 0% Temperature Cool (6) Movement Rolling (110) Location -10/Subcaves Parts ------- > --- POWER (1) -------- Subdweller Power Source > --- PROPULSION (2) --- Spiked Treads Subdweller Monowheel > --- UTILITY (2) ------ Small Storage Unit > --- WEAPON (2) ------- Shotgun Light Cannon > --- INVENTORY (8) ---- Large Matter Pod (150) Light Assault Rifle Shotgun Shotgun Shotgun Light Cannon Light Cannon Grenade Launcher Peak State ------------ > --- POWER ------------ Subdweller Power Source > --- PROPULSION ------- Spiked Treads Subdweller Monowheel > --- UTILITY ---------- Small Storage Unit > --- WEAPON ----------- Shotgun Shotgun > --- INVENTORY -------- Large Matter Pod Light Assault Rifle Shotgun Shotgun Light Cannon Light Cannon Light Cannon Grenade Launcher [Rating: 12] Favorites ----------- Power Ion Engine Engine Ion Engine Propulsion Light Treads Treads Light Treads Wheel Wheel Utility Small Storage Unit Device Tractor Beam Storage Small Storage Unit Weapon Small Laser Energy Gun Small Laser Ballistic Gun Shotgun Ballistic Cannon Light Cannon Build | -11 -10 -10 ------- Run | Yrd Mat Sub Slots Evolved . | . . . Power . | . . . Propulsion . | . . . Utility . | . . . Weapon . | . . . Parts Attached 16 | 4 8 4 Power 3 | 1 1 1 Engine 3 | 1 1 1 Core . | . . . Reactor . | . . . Propulsion 6 | 2 2 2 Treads 3 | 2 . 1 Leg . | . . . Wheel 3 | . 2 1 Hover . | . . . Flight . | . . . Utility 2 | 1 1 . Device 1 | . 1 . Storage 1 | 1 . . Processor . | . . . Hackware . | . . . Protection . | . . . Artifact . | . . . Weapon 5 | . 4 1 Energy Gun 2 | . 2 . Energy Cannon . | . . . Ballistic Gun 2 | . 2 . Ballistic Cannon 1 | . . 1 Launcher . | . . . Special Weapon . | . . . Impact Weapon . | . . . Slashing Weapon . | . . . Piercing Weapon . | . . . Special Melee Weapon . | . . . Unidentified Prototypes . | . . . Parts Lost 5 | . 3 2 Power 1 | . 1 . Propulsion 3 | . 1 2 Utility 1 | . 1 . Weapon . | . . . Highest Loss Streak 2 | . 2 2 To Critical Strikes . | . . . Average Slot Usage (%) 82 | . 83 80 Engine 14 | . 14 14 Treads 14 | . 16 5 Wheel 10 | . 9 18 Storage 14 | . 14 14 Energy Gun 17 | . 21 . Ballistic Gun 9 | . 6 25 Naked Turns . | . . . Heaviest Build 17 | 8 17 16 Greatest Support 40 | 40 40 26 Greatest Overweight (x) 5 | . . 5 Average Overweight (x) . | . . . Largest Inventory Capacity 8 | 8 8 8 Average Capacity 7 | 6 8 8 Most Carried 8 | 8 8 8 Average Carried 7 | 4 7 8 Final Capacity 8 | 8 8 8 Final Carried 8 | 8 8 8 Class Distribution -------------------- 100% | Mutant Dominant Class ---------------- Mutant | -10/Materials Mutant | -10/Subcaves Resources | -11 -10 -10 ----------- Run | Yrd Mat Sub Matter Collected 639 | 163 328 148 Remotely 111 | . 111 . Salvage Created 555 | . 401 154 Parts 37 | . 26 11 Haulers Intercepted 1 | . 1 . Recyclers Shooed 1 | . 1 . Parts Field Recycled . | . . . Retrieved Matter . | . . . Parts Self-Destructed 9 | . . 9 Prevented . | . . . Kills | -11 -10 -10 ------- Run | Yrd Mat Sub Combat Hostiles Destroyed 16 | . 12 4 Guns 16 | . 12 4 Classes Destroyed 5 | . 4 1 Hauler 1 | . 1 . Watcher 2 | . 2 . Swarmer 6 | . 6 . Grunt 6 | . 6 . Subdweller 4 | . . 4 Best Kill Streak 4 | . 4 2 Combat Bots Only 3 | . 3 2 Max Kills in Single Turn 2 | . 2 1 Gunslinging 1 | . 1 . Exploded . | . . . Melee . | . . . Uniques/NPCs Destroyed . | . . . Combat | -11 -10 -10 -------- Run | Yrd Mat Sub Hostile Shots Fired 104 | . 81 23 Missed 28 | . 23 5 Damage Taken 962 | . 583 379 Core 263 | . 91 172 Absorbed by Shields . | . . . Core Remaining (%) 100 | 100 . . Volleys Fired 73 | . 56 17 Largest 2 | . 2 2 Hottest 80 | . 80 58 Shots Fired 145 | . 112 33 Gun 141 | . 112 29 Cannon 4 | . . 4 Launcher . | . . . Special . | . . . Kinetic 49 | . 16 33 Thermal 96 | . 96 . Explosive . | . . . Electromagnetic . | . . . Robot Hit Streak 13 | . 13 11 Robot Miss Streak 5 | . 5 3 Penetration Max . | . . . Secondary Targets 5 | . 5 . Max Gunslinging Chain 1 | . 1 . Shots Hit Robots 96 | . 71 25 Core Hits 41 | . 27 14 Critical Kills . | . . . Critical Parts Destroyed . | . . . Critical Strikes . | . . . Melee Attacks . | . . . Impact . | . . . Slashing . | . . . Piercing . | . . . Sneak Attacks . | . . . Combat Hostiles . | . . . Follow-up Attacks . | . . . Damage Inflicted 1281 | . 913 368 Guns 1262 | . 909 353 Cannons 15 | . . 15 Explosions . | . . . Melee . | . . . Ramming 4 | . 4 . Kinetic 611 | . 243 368 Thermal 666 | . 666 . Explosive . | . . . Electromagnetic . | . . . Impact . | . . . Slashing . | . . . Piercing . | . . . Highest Corruption . | . . . Average Corruption . | . . . Corruption Purged . | . . . Corruption Blocked . | . . . Overload Shots . | . . . Overflow Damage . | . . . Projectiles . | . . . Explosions . | . . . Melee . | . . . Knockbacks . | . . . Impact . | . . . Kinetic . | . . . Secondary . | . . . Self-Inflicted Damage . | . . . Shots . | . . . Rammed 1 | . 1 . Targets Rammed 1 | . 1 . Kicked . | . . . Crushed . | . . . Highest Temperature 298 | . 298 . Average Temperature 85 | . 85 . Received Heat Transfer 276 | . 213 63 Siege Activations . | . . . Robots Corrupted . | . . . Combat Hostiles . | . . . Parts Fried . | . . . Impact Corruptions . | . . . Robots Melted . | . . . Combat Hostiles . | . . . Parts Melted 2 | . 2 . Heat Transferred 1450 | . 1450 . Parts Sabotaged . | . . . Parts Stolen . | . . . Parts Stripped . | . . . Power Chain Reactions . | . . . Alert | -11 -10 -10 ------- Run | Yrd Mat Sub Peak Influence 160 | . 160 . Initial . | . . . Average 59 | . 62 . Maximum Alert Level . | . . . Low Security (%) 100 | 100 100 . Level 1 . | . . . Level 2 . | . . . Level 3 . | . . . Level 4 . | . . . Level 5 . | . . . High Security . | . . . Max Security . | . . . Squads Dispatched 2 | . 2 . Investigation 1 | . 1 . Extermination . | . . . Reinforcement 1 | . 1 . Assault . | . . . Garrison . | . . . Intercept . | . . . Searches Triggered . | . . . Construction Impeded . | . . . Haulers Reinforced . | . . . Active Scanning Responses . | . . . Cargo Convoy Interrupts . | . . . Stealth | -11 -10 -10 --------- Run | Yrd Mat Sub Distress Signals 2 | . 2 . Communications Jammed . | . . . Distress Signals . | . . . Times Spotted 29 | . 23 6 Peak Tracking Total 4 | . 4 2 Tactical Retreats 1 | . 1 . Traps | -11 -10 -10 ------- Run | Yrd Mat Sub Traps Triggered 1 | . 1 . Indirectly . | . . . Trap Hack Attempts . | . . . Triggered . | . . . Disarmed . | . . . Reprogrammed . | . . . Reused . | . . . Traps Extracted . | . . . Installed . | . . . Triggered . | . . . Machines | -11 -10 -10 ---------- Run | Yrd Mat Sub Machines Disabled . | . . . Max in Single Turn . | . . . Machines Repaired . | . . . Machines Dismantled . | . . . Machines Sabotaged . | . . . Overloaded Fab Kills . | . . . Hacking | -11 -10 -10 --------- Run | Yrd Mat Sub Machines Accessed 7 | . 7 . Terminals 7 | . 7 . Fabricators . | . . . Repair Stations . | . . . Recycling Units . | . . . Scanalyzers . | . . . Garrison Access . | . . . Total Hacks 25 | . 25 . Successful 13 | . 13 . Failed 12 | . 12 . Catastrophic . | . . . Database Lockouts . | . . . Manual 19 | . 19 . Terminals 25 | . 25 . Fabricators . | . . . Repair Stations . | . . . Recycling Units . | . . . Scanalyzers . | . . . Garrison Access . | . . . Terminal Hacks 9 | . 9 . Robot Analysis 3 | . 3 . Prototype ID Bank 6 | . 6 . Fabricator Hacks . | . . . Repair Station Hacks . | . . . Recycling Unit Hacks . | . . . Scanalyzer . | . . . Garrison Access Hacks . | . . . Unauthorized Hacks 4 | . 4 . Terminals 4 | . 4 . Assimilate 1 | . 1 . Botnet 3 | . 3 . Fabricators . | . . . Repair Stations . | . . . Recycling Units . | . . . Scanalyzers . | . . . Garrison Access . | . . . Data Cores Recovered . | . . . Used . | . . . Hacking Detections 7 | . 7 . Full Trace Events . | . . . Feedback Events . | . . . Feedback Blocked . | . . . Robot Schematics Acquired . | . . . Robots Built . | . . . Authchips . | . . . Time . | . . . Total Robot Build Rating . | . . . Part Schematics Acquired . | . . . Parts Built . | . . . Authchips . | . . . Time . | . . . Total Part Build Rating . | . . . Parts Repaired . | . . . Time . | . . . Parts Recycled . | . . . Recycled Matter . | . . . Retrieved Matter . | . . . Retrieved Components . | . . . Parts Scanalyzed . | . . . Part Schematics Acquired . | . . . Parts Damaged . | . . . Bothacking | -11 -10 -10 ------------ Run | Yrd Mat Sub Used RIF Installer . | . . . Robots Hacked . | . . . Non-combat . | . . . Combat . | . . . Robot Hacks Applied . | . . . Relay Couplers Released . | . . . Fabnet Peak Effective % . | . . . Robots Rewired . | . . . Allies Hacked . | . . . Hacks Repelled . | . . . Allies | -11 -10 -10 -------- Run | Yrd Mat Sub Total Allies . | . . . Largest Group . | . . . Highest-Rated Group . | . . . Highest-Rated Ally . | . . . Total Orders . | . . . Ally Attacks . | . . . Total Damage . | . . . Kills . | . . . Allies Corrupted . | . . . Allies Melted . | . . . Intel | -11 -10 -10 ------- Run | Yrd Mat Sub Robot Analysis Total 3 | . 3 . Derelict Logs Recovered 1 | . . 1 Drone Launches . | . . . Drone Recoveries . | . . . Exploration | -11 -10 -10 ------------- Run | Yrd Mat Sub Turns Passed 2004 | 91 1610 303 Spaces Moved 1167 | 50 908 209 Core 5 | 2 . 3 Treads 460 | 48 399 13 Legs . | . . . Wheels 702 | . 509 193 Hover . | . . . Flight . | . . . Fastest Speed 50 | 50 90 90 Average Speed 119 | 155 120 106 Slowest Speed 300 | 160 160 300 Overloaded Moves . | . . . Propulsion Burnouts . | . . . Robots Hopped . | . . . Cave-ins Triggered . | . . . Exploration Rate (%) 37 | 3 94 14 Regions Visited 2 Branch Regions 1 Pre-discovered Areas 1 | . . 1 Known Exits Taken . | . . . Unknown Exits Taken 2 | 1 1 . Scrap Searched 3 | . . 3 Spaces Dug . | . . . Terrain Destroyed . | . . . Melee . | . . . Projectile . | . . . AOE . | . . . Terrain Rammed . | . . . Walls Destroyed . | . . . Machines Disabled . | . . . Actions | -11 -10 -10 --------- Run | Yrd Mat Sub Total 1631 | 61 1313 257 Wait 345 | . 319 26 Move 1165 | 49 907 209 Hop . | . . . Pick Up 20 | 8 12 . Fast Attach 9 | 4 3 2 Attach 4 | . 4 . Detach . | . . . Swap 3 | . 1 2 Drop 11 | . 10 1 Fire 73 | . 56 17 Melee . | . . . Ram . | . . . Kick . | . . . Crush 1 | . 1 . Escape Stasis . | . . . Rewire . | . . . Trap . | . . . Miscellaneous . | . . . Route ------- -11/Scrapyard -10/Materials (discovered 5 exits: [*Mat x3] / [*Min] / [*Sub]) -10/Subcaves History --------- Turn | Location | Event 2 | -11/Scrapyard | Met Revision 17 6 | -11/Scrapyard | Discovered new exit (range 15) 92 | -11/Scrapyard | Entered Materials 276 | -10/Materials | Discovered new exit (range 8) 300 | -10/Materials | Build established: Mutant 409 | -10/Materials | Discovered new exit (range 16) 836 | -10/Materials | Discovered new exit (range 16) 1415 | -10/Materials | Discovered new exit (range 8) 1693 | -10/Materials | Discovered new exit (range 10) 1702 | -10/Materials | Entered Subcaves 1725 | -10/Subcaves | A swath of the cavern ceiling suddenly collapsed 1766 | -10/Subcaves | Core integrity fell below 50% 1767 | -10/Subcaves | Learned location of Zion (-7) 1848 | -10/Subcaves | Core integrity fell below 20% 1969 | -10/Subcaves | Shifting Twisted Machinery released Sub. Monowheel 1977 | -10/Subcaves | Shifting Twisted Machinery released Flamer 1995 | -10/Subcaves | Shifting Twisted Machinery released Mak. Axe 2005 | -10/Subcaves | Destroyed by EO-I12(R) with Subdweller Laser Last Messages --------------- 01877_ Found Battle Rifle. 01877_ Found 25 Matter. 01878_ Acquired 25 matter. 01884_ Searching scrap... 01884_ Found Riot Gun. 01884_ Found Battle Cannon. 01884_ Found 24 Matter. 01885_ Acquired 8 matter. 01892_ Acquired Spk. Treads. 01914_ Searching scrap... 01914_ Found Sub. Monowheel. 01914_ Found 24 Matter. 01915_ Acquired 10 matter. Sub. Monowheel falls loose from the Twisted Machinery. Flamer falls loose from the Twisted Machinery. Mak. Axe falls loose from the Twisted Machinery. 02000_ 36-AMT(R) destroyed. 02002_ EO-I12(R) affixes Scrap Shield Fragment to Scrap Shield. Map ----- +----------------------------------------------------+ | ??????????????????????????????????????????? | | ??????????????????????????????????????????? | | ??????????????????????????????????????????? | | ??????????????????????????????????????????? | | ??????????????????????????????????????????? | | ??????????????????????????????????????????? | | ??????????????????????????????????????????? | | ??????????????????????????????????????????? | | ??????????????????????????????????????????? | | ??????????????????????????????????????????? | | ??????????????????????????????????????????? | | ??????????????????????????????????????????? | | ??????????????????????????????????????????? | | ??????????????????????????????????????????? | | ??????????????????????????????????????????? | | ??????????????????????#"""""##????????????? | | ?????????????????????#""" " ????????????? | | ????????????????????#" " ????????????? | | ??????????????????##" " ????????????? | | ???????????????#### " "/" ?????????????? | | ???????????????# "" " ?????????????? | | ???????????????## " "" """?????????????? | | ????????????????# """ """" #?????????????? | | ????????????????## "" #????????????????? | | ?????????????????##%R#####????????????????? | | ?????????????????#@|* #???????????????????? | | ?????????????????##" ##???????????????????? | | ?????????????????# " ##???????????????????? | | ?????????????????##" ###?????????????????? | | ?????????????????#"" " "##????????????????? | | ?????????????????##""" #????????????????? | | ???????????????###"" "#????????????????? | | ??????????????##"""" ##????????????????? | | ??????????????# "= ###?????????????????? | | ??????????????#"" #???????????????????? | | ??????????????# #???????????????????? | | ??????????????# ##???????????????????? | | ??????????????#### #????????????????????? | | ????????????????# ##????????????????????? | | ????????????????## #?????????????????????? | | ????????????????##" #?????????????????????? | | ????????????????#"" ##????????????????????? | | ????????????????##"" #????????????????????? | | ????????????????#"" ##????????????????????? | | ????????????????##" ##????????????????????? | | ????????????????## #????????????????????? | | ????????????????# ##????????????????????? | | ????????????????## #????????????????????? | | ????????????????## #????????????????????? | | ????????????????# ##????????????##????### | +----------------------------------------------------+ Best States ------------- Heat Dissipation 25 Energy Generation 15 Energy Capacity 250 Matter Stores 300 Matter Capacity 300 Sight Range 16 Terrain Scan Density 10 Evasion (%) 42 Recoil Reduction 2 Item Schematics ----------------- None Robot Schematics ------------------ None Fabricated ------------ Nothing Alien Tech Used ----------------- None Achievements -------------- None Challenges ------------ None Game ------ Seed DeuteriumDamperMaul Manual? 0 Play Time 00:13:01 Cumulative 195.8 hours Start 2024.04.14 @ 17:34:43 End 2024.04.14 @ 18:07:37 Sessions 1 Manual Loads 0 Difficulty Rogue Special Mode None Game No. 159 Rogue 159 Adventurer 0 Explorer 0 Win Type - Total 4 Types 4/0/0/0/0/0/0/0/0 Lore% 69 Gallery% 77 Achievement% 64 Wizard Run 0 Options --------- Layout 2 ASCII 1 Keyboard 0 Movement Mouse Keybinds 0 Fullscreen 2 Font 24/Smallcaps Map View 50x44 Zoom Use 0% Tactical HUD 1 Map Filters NONE Filters NONE Steam 1 RUN: dea758d4-3613-46e6-9d57-0094ad41f24d